bitfinex-derivatives/quotes_BTCF0:USTF0_20250402
["timestamp","ask_amount","ask_price","bid_price","bid_amount"]
[1743594644283,0.5216038,84678.0,84677.0,0.2481052]
[1743594645587,0.5216038,84678.0,84677.0,0.0018]
[1743594645780,0.5633038,84678.0,84677.0,8e-05]
[1743594645981,0.5633038,84678.0,84677.0,0.00188]
[1743594646488,0.5633038,84678.0,84677.0,0.0018]
[1743594646693,0.5633038,84678.0,84677.0,0.1199052]
[1743594648793,0.5633038,84678.0,84677.0,0.1616052]
[1743594649186,0.5633038,84678.0,84677.0,0.2038052]
[1743594649387,0.5216038,84678.0,84677.0,0.2038052]
[1743594649586,0.4035,84678.0,84677.0,0.2038052]
[1743594649785,0.3608,84698.0,84685.0,0.1180941]
[1743594650089,0.0004,84687.0,84685.0,0.1198141]
[1743594650393,0.0004,84687.0,84685.0,0.2471141]
[1743594650592,0.0457,84687.0,84685.0,0.25871052]
[1743594650789,0.11826983,84686.0,84685.0,0.25871052]
[1743594651198,0.16356983,84686.0,84685.0,0.25871052]
[1743594659285,0.52436983,84686.0,84685.0,0.25871052]
[1743594659486,0.40627713,84686.0,84685.0,0.25871052]
[1743594659996,0.52436983,84686.0,84685.0,0.25871052]
[1743594660199,0.40627713,84686.0,84685.0,0.25871052]
[1743594660383,0.00017713,84686.0,84685.0,0.25871052]
[1743594660783,0.3608,84688.0,84685.0,0.25871052]
[1743594660999,0.37256239,84715.0,84702.0,0.1180704]
[1743594661295,0.118469,84703.0,84702.0,0.1197904]
[1743594661486,0.118469,84703.0,84702.0,0.22080132]
[1743594661887,0.118469,84703.0,84702.0,0.22986773]
[1743594662094,0.204969,84703.0,84702.0,0.27446773]
[1743594662295,0.204969,84703.0,84702.0,0.26265681]
[1743594662495,0.161569,84703.0,84702.0,0.26265681]
[1743594664194,0.161569,84703.0,84702.0,0.27425201]
[1743594667598,0.161569,84703.0,84702.0,0.01078641]
[1743594667599,0.2848899,84703.0,84702.0,0.01078641]
[1743594667795,0.3702899,84703.0,84702.0,0.12713681]
[1743594667991,0.3702899,84703.0,84702.0,0.12885681]
[1743594668190,0.3702899,84703.0,84702.0,0.00172]
[1743594668498,0.1180704,84702.0,84701.0,0.1181513]
[1743594668697,0.1180704,84702.0,84701.0,0.1199513]
[1743594668888,0.3374083,84702.0,84701.0,0.1199513]
[1743594669087,0.3374083,84702.0,84701.0,0.1198713]
[1743594669500,0.3374083,84702.0,84701.0,1e-07]
[1743594669806,0.3374083,84702.0,84684.0,0.1181748]
[1743594669807,0.1180801,84695.0,84684.0,0.1181748]
[1743594669996,0.4788801,84695.0,84694.0,0.00017713]
[1743594670197,0.4788801,84695.0,84683.0,0.00896499]
[1743594670198,0.1180955,84684.0,84683.0,0.00896499]
[1743594670386,0.1181024,84679.0,84678.0,0.0115879]
[1743594670591,0.11934241,84679.0,84678.0,0.1193425]
[1743594670792,0.11934241,84679.0,84678.0,0.2106425]
[1743594671497,0.11934241,84679.0,84678.0,0.1193425]
[1743594672903,0.16054241,84679.0,84678.0,0.1193425]
[1743594673295,0.16054241,84679.0,84678.0,0.2097425]
[1743594673803,0.16054241,84679.0,84678.0,0.09164]
[1743594674002,0.16054241,84679.0,84678.0,0.00124]
[1743594674303,0.1181052,84678.0,84677.0,0.1181046]
[1743594674493,0.16514521,84678.0,84677.0,0.1193446]
[1743594674696,0.34318782,84678.0,84677.0,0.1193446]
[1743594675501,0.34318782,84678.0,84677.0,0.1649446]
[1743594675702,0.34318782,84678.0,84677.0,0.2080446]
[1743594676104,0.34318782,84678.0,84677.0,1e-07]
[1743594676312,0.1181136,84671.0,84670.0,0.11837213]
[1743594676502,0.1189136,84671.0,84670.0,0.11909213]
[1743594676694,0.24495467,84671.0,84670.0,0.11909213]
[1743594677007,0.24495467,84671.0,84670.0,0.04657713]
[1743594677202,0.29135467,84671.0,84670.0,0.04657713]
[1743594678098,0.29135467,84671.0,84670.0,0.16469213]
[1743594678501,0.1189136,84671.0,84670.0,0.16469213]
[1743594679601,0.1665136,84671.0,84670.0,0.16469213]
[1743594679801,0.29519929,84671.0,84670.0,0.00097713]
[1743594680009,0.29519929,84671.0,84670.0,0.00017713]
[1743594680698,0.29519929,84671.0,84670.0,0.11829213]
[1743594680897,0.29519929,84671.0,84670.0,0.00097713]
[1743594681908,0.29519929,84671.0,84670.0,0.00017713]
[1743594683007,0.29519929,84671.0,84670.0,0.00097713]
[1743594683207,0.29519929,84671.0,84670.0,0.00017713]
[1743594683605,0.29519929,84671.0,84670.0,0.00101713]
[1743594683911,0.29519929,84671.0,84670.0,0.11909213]
[1743594684407,0.40042301,84671.0,84670.0,0.11909213]
[1743594685413,0.44512301,84671.0,84670.0,0.11909213]
[1743594685711,0.49012301,84671.0,84670.0,0.11829213]
[1743594686504,0.49012301,84671.0,84670.0,0.11913213]
[1743594687114,0.49012301,84671.0,84670.0,0.00101713]
[1743594687311,0.49012301,84671.0,84670.0,0.00017713]
[1743594687904,0.38489929,84671.0,84670.0,0.00017713]
[1743594689015,0.0590621,84664.0,84650.0,8e-05]
[1743594689200,0.4789317,84658.0,84650.0,8e-05]
[1743594689409,0.47953171,84658.0,84650.0,8e-05]
[1743594689607,0.1181457,84648.0,84647.0,0.047]
[1743594689810,0.1189457,84648.0,84647.0,0.04784]
[1743594690008,0.24447347,84648.0,84647.0,0.04784]
[1743594690207,0.24447347,84648.0,84647.0,0.00084]
[1743594690404,0.33047347,84648.0,84647.0,0.00084]
[1743594690607,0.37487347,84648.0,84647.0,0.00084]
[1743594693511,0.1181471,84647.0,84646.0,0.00047255]
[1743594693711,0.1181471,84647.0,84646.0,0.00127255]
[1743594694018,0.33391264,84647.0,84646.0,0.00127255]
[1743594697313,0.28841264,84647.0,84646.0,0.00127255]
[1743594697825,0.24411264,84647.0,84646.0,0.11942105]
[1743594698118,0.24411264,84647.0,84646.0,0.21242105]
[1743594702220,0.28911264,84647.0,84646.0,0.21242105]
[1743594703422,0.24411264,84647.0,84646.0,0.21242105]
[1743594705323,0.24411264,84647.0,84646.0,0.26012105]
[1743594705518,0.11874711,84647.0,84646.0,0.26012105]
[1743594707119,0.16434711,84647.0,84646.0,0.26012105]
[1743594707922,0.11874711,84647.0,84646.0,0.26012105]
[1743594709312,0.16474711,84647.0,84646.0,0.26012105]
[1743594710019,0.11874711,84647.0,84646.0,0.26012105]
[1743594710328,0.00060001,84647.0,84646.0,0.26012105]
[1743594710826,0.10522372,84651.0,84646.0,0.26012105]
[1743594710827,0.28243912,84651.0,84650.0,0.1181429]
[1743594711018,0.10602372,84651.0,84650.0,0.1189429]
[1743594711219,0.23760406,84651.0,84650.0,0.1639429]
[1743594711526,0.35574556,84651.0,84650.0,0.1639429]
[1743594713628,0.29622184,84651.0,84650.0,0.1639429]
[1743594714014,0.29622184,84651.0,84650.0,0.0008]
[1743594714228,0.1181471,84647.0,84646.0,0.17769175]
[1743594714428,0.1189471,84647.0,84646.0,0.17849175]
[1743594714624,0.29420349,84647.0,84646.0,0.17849175]
[1743594718130,0.29420349,84647.0,84646.0,0.06034605]
[1743594718326,0.33930349,84647.0,84646.0,0.06034605]
[1743594719719,0.33930349,84647.0,84646.0,0.10614605]
[1743594720323,0.29420349,84647.0,84646.0,0.10614605]
[1743594721025,0.13085639,84647.0,84646.0,0.10614605]
[1743594721227,0.24900349,84647.0,84646.0,0.96614605]
[1743594721532,0.29640349,84647.0,84646.0,0.96614605]
[1743594722228,0.29640349,84647.0,84646.0,0.10614605]
[1743594723329,0.34430349,84647.0,84646.0,0.10614605]
[1743594724429,0.34430349,84647.0,84646.0,0.04707255]
[1743594724736,0.34430349,84647.0,84646.0,0.16522105]
[1743594725131,0.34430349,84647.0,84646.0,0.21352105]
[1743594726935,0.34430349,84647.0,84646.0,0.11942105]
[1743594727135,0.34430349,84647.0,84646.0,0.00127255]
[1743594727821,0.34430349,84647.0,84644.0,8e-05]
[1743594727822,0.1181499,84645.0,84644.0,5e-08]
[1743594728033,0.1187899,84645.0,84644.0,0.00068005]
[1743594728334,0.1181541,84642.0,84641.0,0.2117866]
[1743594728532,0.11875411,84642.0,84641.0,0.2123866]
[1743594728732,0.24905763,84642.0,84641.0,0.2123866]
[1743594728936,0.34165763,84642.0,84641.0,0.2123866]
[1743594729233,0.34165763,84642.0,84641.0,0.0006]
[1743594729440,0.1181555,84641.0,84640.0,0.2117866]
[1743594729626,0.1187955,84641.0,84640.0,0.2124266]
[1743594729827,0.33776881,84641.0,84640.0,0.2124266]
[1743594732830,0.33776881,84641.0,84640.0,0.2117866]
[1743594733027,0.33776881,84641.0,84640.0,0.2123866]
[1743594733834,0.33776881,84641.0,84640.0,0.0006]
[1743594734029,0.1181568,84640.0,84639.0,8e-05]
[1743594734230,0.5249368,84640.0,84639.0,0.00076]
[1743594734431,0.74333696,84640.0,84639.0,8e-05]
[1743594734925,0.1181694,84631.0,84630.0,0.00047264]
[1743594735123,0.47956941,84631.0,84630.0,0.00115264]
[1743594735730,0.57476941,84631.0,84630.0,0.00115264]
[1743594735930,0.57476941,84631.0,84630.0,0.00047264]
[1743594736141,0.57476941,84631.0,84630.0,0.00115264]
[1743594736939,0.57476941,84631.0,84630.0,0.11932344]
[1743594737140,0.52656941,84631.0,84630.0,0.16732344]
[1743594737345,0.00060001,84631.0,84630.0,0.21472344]
[1743594737838,0.0590823,84635.0,84634.0,0.1181635]
[1743594738037,0.2370154,84635.0,84634.0,0.1188435]
[1743594738240,0.37082271,84635.0,84634.0,0.1188435]
[1743594738544,0.37082271,84635.0,84634.0,0.00068]
[1743594738732,0.37082271,84635.0,84634.0,0.1181652]
[1743594738933,0.00068,84635.0,84634.0,0.1187652]
[1743594739138,0.00068,84635.0,84634.0,1.0714652]
[1743594739340,0.00017724,84639.0,84637.0,0.1181596]
[1743594739544,0.00017724,84639.0,84638.0,0.2108596]
[1743594739736,0.11833544,84639.0,84638.0,0.2116196]
[1743594739941,0.11909544,84639.0,84638.0,0.2116196]
[1743594740138,0.00093724,84639.0,84638.0,0.2116196]
[1743594740336,0.00017724,84639.0,84638.0,0.2116196]
[1743594740541,0.11833544,84639.0,84638.0,0.2116196]
[1743594740842,0.11893545,84639.0,84638.0,0.2116196]
[1743594742139,0.11883545,84639.0,84638.0,0.2116196]
[1743594744341,0.00067725,84639.0,84638.0,0.2116196]
[1743594744535,7.724e-05,84639.0,84638.0,0.2116196]
[1743594744739,7.724e-05,84639.0,84638.0,0.2216196]
[1743594745549,0.00083724,84639.0,84638.0,0.2216196]
[1743594746043,0.11899544,84639.0,84638.0,0.2216196]
[1743594746239,0.11899544,84639.0,84638.0,0.2116196]
[1743594746444,0.00083724,84639.0,84638.0,0.2116196]
[1743594746653,7.724e-05,84639.0,84638.0,0.2116196]
[1743594746856,0.00091724,84639.0,84638.0,0.2116196]
[1743594747241,0.11907544,84639.0,84638.0,0.2116196]
[1743594747641,0.11907544,84639.0,84638.0,0.2216196]
[1743594747851,0.11907544,84639.0,84638.0,0.2116196]
[1743594751351,0.16557544,84639.0,84638.0,0.2116196]
[1743594752061,0.04741724,84639.0,84638.0,0.2116196]
[1743594752254,0.16557544,84639.0,84638.0,0.2116196]
[1743594757062,0.27078899,84639.0,84638.0,0.2116196]
[1743594758075,0.27078899,84639.0,84638.0,0.2416196]
[1743594758277,0.15263079,84639.0,84638.0,0.2116196]
[1743594758469,0.10613079,84639.0,84638.0,0.2116196]
[1743594759067,0.22428899,84639.0,84638.0,0.2116196]
[1743594759266,0.27188899,84639.0,84638.0,0.2316196]
[1743594759978,0.27188899,84639.0,84638.0,0.2116196]
[1743594760278,0.22428899,84639.0,84638.0,0.2316196]
[1743594760470,0.10613079,84639.0,84638.0,0.2316196]
[1743594760777,0.22428899,84639.0,84638.0,0.2316196]
[1743594761071,0.16727544,84639.0,84638.0,0.2116196]
[1743594761668,0.21377544,84639.0,84638.0,0.2316196]
[1743594761862,0.21377544,84639.0,84638.0,0.2116196]
[1743594762676,0.21377544,84639.0,84638.0,0.2316196]
[1743594762878,0.16727544,84639.0,84638.0,0.2316196]
[1743594763578,0.16727544,84639.0,84638.0,0.2116196]
[1743594763782,0.21557544,84639.0,84638.0,0.2116196]
[1743594764175,0.21557544,84639.0,84638.0,0.2316196]
[1743594764375,0.21557544,84639.0,84638.0,0.2116196]
[1743594765074,0.21557544,84639.0,84638.0,0.2516196]
[1743594765075,0.00091724,84639.0,84638.0,0.2516196]
[1743594765277,0.00091724,84639.0,84638.0,0.2316196]
[1743594765579,0.00083724,84639.0,84638.0,0.2316196]
[1743594766381,7.724e-05,84639.0,84638.0,0.2316196]
[1743594766575,7.724e-05,84639.0,84638.0,1.0916196]
[1743594768181,7.724e-05,84639.0,84638.0,1.1116196]
[1743594768875,0.10521355,84643.0,84642.0,0.1181541]
[1743594769084,0.10521355,84643.0,84642.0,0.4897141]
[1743594769680,0.10521355,84643.0,84642.0,0.5819141]
[1743594770284,0.00017724,84651.0,84650.0,0.1181429]
[1743594770583,0.04677725,84651.0,84650.0,0.4897029]
[1743594770783,0.04693724,84651.0,84650.0,0.4897029]
[1743594771276,0.00093724,84651.0,84650.0,0.4897029]
[1743594771477,0.1181283,84661.0,84658.0,0.1181317]
[1743594771683,0.32972275,84659.0,84658.0,0.1191317]
[1743594772279,0.001,84659.0,84658.0,0.1191317]
[1743594772478,0.0462,84659.0,84658.0,0.2086317]
[1743594772872,0.1643303,84659.0,84658.0,0.2086317]
[1743594773073,0.0462,84659.0,84658.0,0.5694317]
[1743594773278,0.0452,84659.0,84658.0,0.5894317]
[1743594773479,0.0462,84659.0,84658.0,0.5894317]
[1743594773882,0.0452,84659.0,84658.0,0.5894317]
[1743594774090,0.0452,84659.0,84658.0,0.60150234]
[1743594778882,0.0452,84659.0,84658.0,0.67974234]
[1743594779787,0.0452,84659.0,84658.0,0.31894234]
[1743594780691,0.0462,84659.0,84658.0,0.31894234]
[1743594780893,0.0452,84659.0,84658.0,0.31894234]
[1743594781483,0.0462,84659.0,84658.0,0.31894234]
[1743594782991,0.0452,84659.0,84658.0,0.31894234]
[1743594784996,0.0462,84659.0,84658.0,0.31894234]
[1743594786502,0.0462,84659.0,84658.0,0.29894234]
[1743594786888,0.0452,84659.0,84658.0,0.29894234]
[1743594787090,0.0462,84659.0,84658.0,0.29894234]
[1743594787288,0.0452,84659.0,84658.0,0.29894234]
[1743594787490,0.0462,84659.0,84658.0,0.29894234]
[1743594787698,0.0452,84659.0,84658.0,0.29894234]
[1743594787997,0.0452,84659.0,84658.0,0.30894234]
[1743594788387,0.0452,84659.0,84658.0,0.29894234]
[1743594788597,0.04624001,84659.0,84658.0,0.29894234]
[1743594788900,0.0911,84659.0,84658.0,0.29894234]
[1743594789094,0.0911,84659.0,84658.0,0.30894234]
[1743594790209,0.0921,84659.0,84658.0,0.30894234]
[1743594790493,0.2102303,84659.0,84658.0,0.001]
[1743594790703,0.1181317,84658.0,84657.0,8e-05]
[1743594790893,0.1181415,84651.0,84646.0,0.1181476]
[1743594791087,0.11918151,84651.0,84650.0,0.00117724]
[1743594791288,0.3490479,84651.0,84650.0,0.11932014]
[1743594791487,0.2309064,84651.0,84650.0,0.11932014]
[1743594791693,0.04864001,84651.0,84650.0,0.62432014]
[1743594791889,0.0476,84651.0,84650.0,0.62432014]
[1743594792485,0.04864001,84651.0,84650.0,0.62432014]
[1743594792685,0.0476,84651.0,84650.0,0.62432014]
[1743594792897,0.0476,84651.0,84650.0,0.83610674]
[1743594793706,0.0486,84651.0,84650.0,0.83610674]
[1743594794403,0.1667415,84651.0,84650.0,0.83610674]
[1743594794590,0.094,84651.0,84650.0,0.83610674]
[1743594794796,0.093,84651.0,84650.0,0.83610674]
[1743594795192,0.2111415,84651.0,84650.0,0.83610674]
[1743594795506,0.21218151,84651.0,84650.0,0.69190674]
[1743594796500,0.21218151,84651.0,84650.0,0.48012014]
[1743594797602,0.21218151,84651.0,84650.0,0.36197724]
[1743594797797,0.21218151,84651.0,84650.0,0.00117724]
[1743594797994,0.21218151,84651.0,84650.0,0.11932014]
[1743594798204,0.33646368,84651.0,84650.0,0.11932014]
[1743594802813,0.33646368,84651.0,84650.0,0.00117724]
[1743594803001,0.33646368,84651.0,84650.0,0.00017724]
[1743594804099,0.1181513,84644.0,84643.0,8e-05]
[1743594804295,0.47955131,84644.0,84643.0,0.00108]
[1743594804601,0.47955131,84644.0,84634.0,8e-05]
[1743594804602,0.118161,84637.0,84634.0,8e-05]
[1743594804908,0.479961,84637.0,84636.0,0.2127866]
[1743594805113,0.60693486,84637.0,84636.0,0.2127866]
[1743594805501,0.74753486,84637.0,84636.0,0.2127866]
[1743594806813,0.74753486,84637.0,84636.0,0.001]
[1743594808504,0.38673486,84637.0,84636.0,0.001]
[1743594808806,0.74753486,84637.0,84636.0,0.001]
[1743594809010,0.1181638,84635.0,84634.0,8e-05]
[1743594809313,0.1191638,84635.0,84634.0,0.00108]
[1743594809613,0.24675149,84635.0,84634.0,0.00108]
[1743594811409,0.24675149,84635.0,84634.0,8e-05]
[1743594811603,0.34195149,84635.0,84634.0,8e-05]
[1743594812011,0.1181694,84631.0,84630.0,0.00047264]
[1743594812312,0.1188494,84631.0,84630.0,0.00047264]
[1743594812615,0.24940938,84631.0,84630.0,0.00047264]
[1743594813018,0.34380938,84631.0,84630.0,0.00047264]
[1743594815621,0.34380938,84631.0,84630.0,0.11864344]
[1743594815827,0.34380938,84631.0,84630.0,0.04791264]
[1743594816216,0.34380938,84631.0,84630.0,0.09441264]
[1743594817430,0.34380938,84631.0,84630.0,0.09337264]
[1743594817617,0.34380938,84631.0,84630.0,0.21154344]
[1743594817922,0.34380938,84631.0,84630.0,0.21254344]
[1743594818127,0.34380938,84631.0,84630.0,0.09437264]
[1743594818420,0.34380938,84631.0,84630.0,0.09337264]
[1743594818611,0.34380938,84631.0,84630.0,0.09437264]
[1743594819017,0.34380938,84631.0,84630.0,0.21254344]
[1743594820425,0.29790938,84631.0,84630.0,0.21254344]
[1743594825530,0.13123998,84631.0,84630.0,0.21254344]
[1743594825833,0.1188494,84631.0,84630.0,0.21254344]
[1743594830439,0.1660494,84631.0,84630.0,0.21254344]
[1743594831844,0.1188494,84631.0,84630.0,0.21254344]
[1743594835238,0.29255934,84631.0,84630.0,0.21254344]
[1743594836346,0.1188494,84631.0,84630.0,0.21254344]
[1743594836540,0.00068,84631.0,84630.0,0.21254344]
[1743594836742,0.00068,84631.0,84630.0,0.57334344]
[1743594837639,0.1181674,84633.0,84632.0,0.118168]
[1743594837843,0.25965386,84633.0,84632.0,0.167148]
[1743594838050,0.25965386,84633.0,84632.0,0.216748]
[1743594838253,0.25965306,84633.0,84632.0,0.216748]
[1743594841552,0.1191666,84633.0,84632.0,0.216748]
[1743594842745,0.001,84633.0,84632.0,0.216748]
[1743594842944,0.14048646,84637.0,84636.0,0.1181624]
[1743594843149,0.14148646,84637.0,84636.0,0.1192424]
[1743594843352,0.14148646,84637.0,84636.0,0.2630424]
[1743594845551,0.001,84637.0,84636.0,0.2630424]
[1743594845751,0.1653584,84639.0,84638.0,0.1181596]
[1743594845948,0.1659984,84639.0,84638.0,0.4799996]
[1743594846255,0.1653584,84639.0,84638.0,0.5712996]
[1743594847340,0.14048646,84643.0,84642.0,0.1181541]
[1743594847537,0.30643917,84643.0,84642.0,0.1191541]
[1743594847741,0.30643917,84643.0,84642.0,0.2104541]
[1743594847948,0.30643917,84643.0,84642.0,0.22220478]
[1743594849947,0.16595271,84643.0,84642.0,0.22220478]
[1743594852352,0.16595271,84643.0,84642.0,0.23220478]
[1743594852654,0.16595271,84643.0,84642.0,0.22220478]
[1743594856057,0.21485271,84643.0,84642.0,0.22220478]
[1743594856448,0.21485271,84643.0,84642.0,0.23220478]
[1743594856646,0.21485271,84643.0,84642.0,0.22220478]
[1743594857551,0.04780001,84643.0,84642.0,0.22220478]
[1743594858150,0.16595271,84643.0,84642.0,0.22220478]
[1743594859053,0.04780001,84643.0,84642.0,0.22220478]
[1743594859756,0.16595271,84643.0,84642.0,0.22220478]
[1743594860152,0.04780001,84643.0,84642.0,0.22220478]
[1743594860844,0.04780001,84643.0,84642.0,0.23220478]
[1743594862148,0.04780001,84643.0,84642.0,0.22220478]
[1743594863344,0.04780001,84643.0,84642.0,0.23220478]
[1743594863545,0.0472,84643.0,84642.0,0.23220478]
[1743594864852,0.00017724,84645.0,84644.0,0.1181513]
[1743594865052,0.00117724,84645.0,84644.0,0.1291513]
[1743594865249,0.00117724,84645.0,84644.0,0.2214513]
[1743594866057,0.00117724,84645.0,84644.0,0.2671513]
[1743594867966,0.00017724,84645.0,84644.0,0.2671513]
[1743594868167,0.00077725,84645.0,84644.0,0.2671513]
[1743594869357,0.00017724,84645.0,84644.0,0.2671513]
[1743594869556,0.00117724,84645.0,84644.0,0.2671513]
[1743594870660,0.00017724,84645.0,84644.0,0.2671513]
[1743594871365,0.00125724,84645.0,84644.0,0.2671513]
[1743594871571,0.00225724,84645.0,84644.0,0.2671513]
[1743594871870,0.16922714,84645.0,84644.0,0.2671513]
[1743594872165,0.16922714,84645.0,84644.0,0.3445113]
[1743594872366,0.05107724,84645.0,84644.0,0.3445113]
[1743594872667,0.16922714,84645.0,84644.0,0.2671513]
[1743594873959,0.05107724,84645.0,84644.0,0.2671513]
[1743594874462,0.16922714,84645.0,84644.0,0.4789379]
[1743594874859,0.16922714,84645.0,84644.0,0.8397379]
[1743594875161,0.05107724,84645.0,84644.0,0.8397379]
[1743594875957,0.05107724,84645.0,84644.0,0.4789379]
[1743594876159,0.05107724,84645.0,84644.0,0.8397379]
[1743594877161,0.05107724,84645.0,84644.0,0.4789379]
[1743594877357,0.05107724,84645.0,84644.0,0.8397379]
[1743594880271,0.05107724,84645.0,84644.0,0.4789379]
[1743594880567,0.05107724,84645.0,84644.0,0.7017379]
[1743594880766,0.05107724,84645.0,84644.0,0.7369379]
[1743594881073,0.05107724,84645.0,84644.0,0.7826379]
[1743594882469,0.09877724,84645.0,84644.0,0.7826379]
[1743594882667,0.09977724,84645.0,84644.0,0.7826379]
[1743594883773,0.09977724,84645.0,84644.0,0.7926379]
[1743594886175,0.09977724,84645.0,84644.0,0.5708513]
[1743594889262,0.05107724,84645.0,84644.0,0.5708513]
[1743594892675,0.05107724,84645.0,84644.0,1.4308513]
[1743594892875,0.05007724,84645.0,84644.0,1.4308513]
[1743594894267,0.05007724,84645.0,84644.0,0.5708513]
[1743594894472,0.15651964,84645.0,84644.0,0.5708513]
[1743594894680,0.15651964,84645.0,84644.0,0.6482113]
[1743594895177,0.15551964,84645.0,84644.0,0.6482113]
[1743594895579,0.15651964,84645.0,84644.0,0.6482113]
[1743594896177,0.15551964,84645.0,84644.0,0.6482113]
[1743594896670,0.15655965,84645.0,84644.0,0.6482113]
[1743594897574,0.27470955,84645.0,84644.0,0.6482113]
[1743594897879,0.28470955,84645.0,84644.0,0.6482113]
[1743594898373,0.28470955,84645.0,84644.0,0.8599979]
[1743594898374,0.17926715,84645.0,84644.0,0.8599979]
[1743594898678,0.17822714,84645.0,84644.0,0.8599979]
[1743594899280,0.17822714,84645.0,84644.0,0.4991979]
[1743594899483,0.17926715,84645.0,84644.0,0.8599979]
[1743594899872,0.17822714,84645.0,84644.0,0.8599979]
[1743594900466,0.17822714,84645.0,84644.0,0.8589979]
[1743594901877,0.06007724,84645.0,84644.0,0.8589979]
[1743594902071,0.17822714,84645.0,84644.0,0.8589979]
[1743594902873,0.17822714,84645.0,84644.0,0.4981979]
[1743594903068,0.17822714,84645.0,84644.0,0.8589979]
[1743594903273,0.06007724,84645.0,84644.0,0.8589979]
[1743594903475,0.07736,84679.0,84654.0,0.1181373]
[1743594903779,0.0590666,84657.0,84654.0,0.4789373]
[1743594903982,0.29366738,84655.0,84654.0,1.3489373]
[1743594904179,0.29366738,84655.0,84654.0,1.4281373]
[1743594904481,0.29366738,84655.0,84654.0,0.5681373]
[1743594905086,0.29466738,84655.0,84654.0,0.5691373]
[1743594905577,0.29466738,84655.0,84654.0,0.001]
[1743594905783,0.1181401,84652.0,84651.0,0.0459]
[1743594905975,0.1191401,84652.0,84651.0,0.1650396]
[1743594906173,0.2122401,84652.0,84651.0,0.1650396]
[1743594908585,0.2567401,84652.0,84651.0,0.1650396]
[1743594913883,0.2093401,84652.0,84651.0,0.1650396]
[1743594914092,0.2093401,84652.0,84651.0,0.2088396]
[1743594914279,0.001,84652.0,84651.0,0.2088396]
[1743594914976,0.001,84652.0,84651.0,1.0688396]
[1743594915383,0.1191401,84652.0,84651.0,1.0688396]
[1743594915778,0.001,84652.0,84651.0,1.0688396]
[1743594916488,0.1772017,84661.0,84660.0,0.1771898]
[1743594916676,0.2226217,84661.0,84660.0,0.1785098]
[1743594917281,0.281688,84661.0,84660.0,0.1785098]
[1743594919289,0.1635526,84661.0,84660.0,0.1785098]
[1743594919883,0.0603863,84661.0,84660.0,0.1785098]
[1743594920886,0.0603863,84661.0,84660.0,0.18738019]
[1743594921287,0.1081863,84661.0,84660.0,0.18738019]
[1743594923688,0.04912,84661.0,84660.0,0.18738019]
[1743594923988,0.1672475,84661.0,84660.0,0.18738019]
[1743594924693,0.2103475,84661.0,84660.0,0.18738019]
[1743594927888,0.2103475,84661.0,84660.0,0.06925409]
[1743594928484,0.2103475,84661.0,84660.0,0.01019039]
[1743594932997,0.34573471,84661.0,84660.0,0.01019039]
[1743594933888,0.34573471,84661.0,84660.0,0.05649039]
[1743594936302,0.34573471,84661.0,84660.0,0.01019039]
[1743594936512,0.34573471,84661.0,84660.0,0.00887039]
[1743594936709,0.1181387,84653.0,84652.0,0.1644397]
[1743594936895,0.1181387,84653.0,84652.0,0.1658397]
[1743594937199,0.2518387,84653.0,84652.0,0.1658397]
[1743594937701,0.37500843,84653.0,84652.0,0.0014]
[1743594938893,0.1181401,84652.0,84651.0,8e-05]
[1743594939299,0.1181457,84648.0,84647.0,0.21251169]
[1743594939505,0.1181457,84648.0,84647.0,0.21383169]
[1743594939807,0.24296257,84648.0,84647.0,0.21383169]
[1743594940003,0.24428257,84648.0,84647.0,0.21383169]
[1743594940200,0.33288257,84648.0,84647.0,0.21383169]
[1743594941997,0.33288257,84648.0,84634.0,0.35347184]
[1743594941998,0.0590753,84645.0,84634.0,0.35347184]
[1743594942304,0.0590753,84645.0,84625.0,8e-05]
[1743594942305,0.1181764,84626.0,84625.0,8e-05]
[1743594942606,0.5569364,84626.0,84625.0,0.00068]
[1743594942795,0.68533706,84626.0,84625.0,0.00068]
[1743594946804,0.1181792,84624.0,84623.0,0.28315571]
[1743594947112,0.1181792,84624.0,84618.0,0.35394463]
[1743594947113,0.1181862,84619.0,84618.0,0.35394463]
[1743594947300,0.4797862,84619.0,84618.0,0.32004443]
[1743594947610,1.09915075,84619.0,84618.0,0.0006]
[1743594947798,0.1181876,84618.0,84617.0,0.00017724]
[1743594947995,0.2872076,84618.0,84617.0,0.00017724]
[1743594948200,0.41095215,84618.0,84617.0,0.00017724]
[1743594948596,0.41095215,84618.0,84612.0,8e-05]
[1743594948597,0.1181946,84613.0,84612.0,8e-05]
[1743594948803,0.1189146,84613.0,84612.0,8e-05]
[1743594949001,0.32359387,84613.0,84612.0,8e-05]
[1743594949501,0.41489387,84613.0,84612.0,8e-05]
[1743594949797,0.29027387,84613.0,84612.0,8e-05]
[1743594950608,0.12807927,84613.0,84612.0,0.247476]
[1743594950795,0.1189146,84613.0,84612.0,0.248076]
[1743594951202,0.1189146,84613.0,84612.0,0.98988]
[1743594951702,0.1189146,84613.0,84612.0,0.12988]
[1743594952010,0.1189146,84613.0,84612.0,0.247476]
[1743594952213,0.1189146,84613.0,84612.0,0.248076]
[1743594953413,0.1189146,84613.0,84612.0,0.12988]
[1743594953910,0.1189146,84613.0,84612.0,0.04338]
[1743594954108,0.30089768,84613.0,84612.0,0.04278]
[1743594954309,0.30089768,84613.0,84612.0,0.04338]
[1743594954611,0.30089768,84613.0,84612.0,0.0433]
[1743594955014,0.25599768,84613.0,84612.0,0.161496]
[1743594955206,0.25599768,84613.0,84612.0,0.0433]
[1743594955806,0.30109768,84613.0,84612.0,0.0427]
[1743594956117,0.30109768,84613.0,84612.0,0.0433]
[1743594957412,0.30109768,84613.0,84612.0,0.0427]
[1743594957413,0.25599768,84613.0,84612.0,0.0427]
[1743594958116,0.34649768,84613.0,84612.0,0.0427]
[1743594960323,0.42385768,84613.0,84612.0,0.0427]
[1743594962521,0.42385768,84613.0,84608.0,8e-05]
[1743594962522,0.1182001,84609.0,84608.0,8e-05]
[1743594962722,0.4797201,84609.0,84608.0,8e-05]
[1743594962921,0.69803705,84609.0,84608.0,8e-05]
[1743594966421,0.60923705,84609.0,84608.0,8e-05]
[1743594967226,0.60923705,84609.0,84608.0,0.00084]
[1743594967415,0.60923705,84609.0,84608.0,8e-05]
[1743594968315,0.60923705,84609.0,84608.0,0.00068]
[1743594968619,0.60923705,84609.0,84608.0,8e-05]
[1743594970618,0.60923705,84609.0,84608.0,0.00068]
[1743594970818,0.60923705,84609.0,84608.0,8e-05]
[1743594971217,0.60923705,84609.0,84608.0,0.00076]
[1743594971825,0.60923705,84609.0,84608.0,0.1182815]
[1743594972019,0.60923705,84609.0,84608.0,0.1189215]
[1743594972222,0.60923705,84609.0,84608.0,0.2089215]
[1743594972417,0.24843705,84609.0,84608.0,0.2089215]
[1743594974424,0.24843705,84609.0,84608.0,0.09072]
[1743594975716,0.24843705,84609.0,84608.0,0.2089215]
[1743594975910,0.00072,84609.0,84608.0,0.2089215]
[1743594976325,0.1189201,84609.0,84608.0,0.2089215]